Workbook

Sheet Prijsberekening (hidden)
B22: Densiteit | C22: P20 - EPS 100 | I22: Afhalen
C23: Lengte | D23: Breedte | E23: Hoogte | I23: Verzending
B24: Karton doos | C24: 200 | D24: 250 | E24: 150
B25: Wanddikte | C25: 30 | D25: mm
B26: Stuks: | C26: 100 | D26: stuks
B28: Prijs: | C28: =J53 -> 2.72 | D28: (bij afname van | E28: =C26 -> 100 | F28: sets)
B29: Prijs: | C29: =J42*2+J43 -> 4.6 | D29: (bij afname van | E29: 50 | F29: sets)
B30: Prijs: | C30: =J44*2+J45 -> 2.72 | D30: (bij afname van | E30: 100 | F30: sets)
B31: Prijs: | C31: =J46*2+J47 -> 1.88 | D31: (bij afname van | E31: 250 | F31: sets)
B32: Prijs: | C32: =J48*2+J49 -> 1.57 | D32: (bij afname van | E32: 500 | F32: sets)
B33: Prijs: | C33: =J50*2+J51 -> 1.4 | D33: (bij afname van | E33: 1000 | F33: sets)
B34: Prijs: | C34: =J54*2+J55 -> 16.95 | D34: (bij afname van | E34: 10 | F34: sets)
A37: =C26 -> 100 | C37: =C24 -> 200 | D37: =D24 -> 250 | E37: =E24 -> 150 | G37: =F37/1000*A37 -> 0 | I37: =ROUND(H37*F37/1000,4) ->  | J37: Prijzen zijn met factor berekend!
A38: VS | B38: Densiteit | C38: literinhoud | F38: liter/stuk | G38: totale m³ (voor alle stuks) | H38: eenheidsprijs (€/m³) | I38: MateriaalPrijs/stuk | J38: Totaalprijs/stuk | K38: 2e snij afstand | L38: snijsnelheid (in mm/min) | M38: % doorweging | N38: 2e snij tijd (in min) | O38: 2e snij € | P38: Stuks per snij | Q38: 3e snij afstand | R38: snijsnelheid | S38: 3e snij tijd | T38: 3e snij € | AA38: FactorDeel bij meer dan 4 stuks | AB38: Naam | AC38: FactorMaal | AD38: FactorDeel | AE38: Programmatiekost (totaal) | AF38: Eenheid
A39: =A37*2 -> 200 | B39: =C22 -> P20 - EPS 100 | C39: =$C$37 -> 200 | D39: =$D$37 -> 250 | E39: 20 | F39: =C39*D39*E39/1000000 -> 1 | G39: =F39/1000*A39 -> 0.2 | H39: =VLOOKUP(G39,[1]EPStabel!$A$1:$I$38,VLOOKUP(B39,[1]EPStabel!$K$1:$L$18,2,FALSE),TRUE) -> 197.64 | I39: =ROUND(H39*F39/1000,4) -> 0.1976 | J39: =ROUND(((I39+O39+T39+(AE39/A39))*$AC$39/$AD$39*$AF$39),2) -> 0.5 | O39: =N39/60*$AC$43 -> 0 | P39: 1 | S39: 0 | T39: =S39/60*$AD$43 -> 0 | AA39: =IF(A40>4,0.9,1) -> 0.9 | AC39: 1 | AD39: =IF(C26>50,0.85,0.9) -> 0.85 | AE39: 45 | AF39: 1
A40: =A37*1 -> 100 | B40: =B39 -> P20 - EPS 100 | C40: =$C$39 -> 200 | D40: =$D$37 -> 250 | E40: =$E$37-E39-E39 -> 110 | F40: =C40*D40*E40/1000000 -> 5.5 | G40: =F40/1000*A40 -> 0.55 | H40: =VLOOKUP(G40,[1]EPStabel!$A$1:$I$38,VLOOKUP(B40,[1]EPStabel!$K$1:$L$18,2,FALSE),TRUE) -> 152.5 | I40: =ROUND(H40*F40/1000,4) -> 0.8388 | J40: =ROUND(((I40+O40+T40+(AE40/A40))*$AC$39/$AD$39*$AF$39),2) -> 1.72 | K40: =($C$24+$D$24)*2*1.5 -> 1350 | L40: 255 | M40: =VLOOKUP(A40,$A$69:$B$168,2) -> 3 | N40: =K40/L40 -> 5.294117647 | O40: =N40/60*$AC$43*M40/100 -> 0.1720588235 | T40: =S40/60*$AD$43 -> 0 | AE40: 45
O41: =N41/60*$AC$43 -> 0 | T41: 0 | AE41: 45
A42: =A43*2 -> 100 | B42: =C22 -> P20 - EPS 100 | C42: =$C$37 -> 200 | D42: =$D$37 -> 250 | E42: 20 | F42: =C42*D42*E42/1000000 -> 1 | G42: =F42/1000*A42 -> 0.1 | H42: =VLOOKUP(G42,[1]EPStabel!$A$1:$I$38,VLOOKUP(B42,[1]EPStabel!$K$1:$L$18,2,FALSE),TRUE) -> 228.14 | I42: =ROUND(H42*F42/1000,4) -> 0.2281 | J42: =ROUND(((I42+O42+T42+(AE42/A42))*$AC$39/0.9*$AF$39),2) -> 0.75 | O42: 0 | T42: 0 | AA42: =IF(A43>4,0.9,1) -> 0.9 | AD42: =IF(A43>50,0.85,0.9) -> 0.9 | AE42: 45
A43: =E29 -> 50 | B43: =C22 -> P20 - EPS 100 | C43: =$C$39 -> 200 | D43: 250 | E43: =$E$37-E42-E42 -> 110 | F43: 5.5 | G43: 0.275 | H43: =VLOOKUP(G43,[1]EPStabel!$A$1:$I$38,VLOOKUP(B43,[1]EPStabel!$K$1:$L$18,2,FALSE),TRUE) -> 187.88 | I43: 1.0333 | J43: =ROUND(((I43+O43+T43+(AE43/A43))*$AC$39/0.9*$AF$39),2) -> 3.1 | K43: =($C$24+$D$24)*2*1.5 -> 1350 | L43: 255 | M43: =VLOOKUP(A43,$A$69:$B$168,2) -> 15 | N43: =K43/L43 -> 5.294117647 | O43: =N43/60*$AC$43*M43/100 -> 0.8602941176 | T43: 0 | AC43: 65 | AD43: 65 | AE43: 45
A44: =A45*2 -> 200 | B44: =C22 -> P20 - EPS 100 | C44: =$C$37 -> 200 | D44: 250 | E44: 20 | F44: 1 | G44: 0.2 | H44: =VLOOKUP(G44,[1]EPStabel!$A$1:$I$38,VLOOKUP(B44,[1]EPStabel!$K$1:$L$18,2,FALSE),TRUE) -> 197.64 | I44: 0.1976 | J44: =ROUND(((I44+O44+T44+(AE44/A44))*$AC$39/0.85*$AF$39),2) -> 0.5 | O44: 0 | T44: 0 | AA44: =IF(A45>4,0.9,1) -> 0.9 | AD44: =IF(A45>50,0.85,0.9) -> 0.85 | AE44: 45
A45: =E30 -> 100 | B45: =C22 -> P20 - EPS 100 | C45: =$C$39 -> 200 | D45: 250 | E45: =$E$37-E44-E44 -> 110 | F45: 5.5 | G45: 0.55 | H45: =VLOOKUP(G45,[1]EPStabel!$A$1:$I$38,VLOOKUP(B45,[1]EPStabel!$K$1:$L$18,2,FALSE),TRUE) -> 152.5 | I45: 0.8388 | J45: 1.72 | K45: =($C$24+$D$24)*2*1.5 -> 1350 | L45: 255 | M45: 3 | N45: =K45/L45 -> 5.294117647 | O45: =N45/60*$AC$43*M45/100 -> 0.1720588235 | T45: 0 | AE45: 45
A46: =A47*2 -> 500 | B46: =C22 -> P20 - EPS 100 | C46: =$C$37 -> 200 | D46: 250 | E46: 20 | F46: 1 | G46: 0.5 | H46: =VLOOKUP(G46,[1]EPStabel!$A$1:$I$38,VLOOKUP(B46,[1]EPStabel!$K$1:$L$18,2,FALSE),TRUE) -> 152.5 | I46: 0.1525 | J46: 0.29 | O46: 0 | T46: 0 | AA46: =IF(A47>4,0.9,1) -> 0.9 | AD46: =IF(A46>50,0.85,0.9) -> 0.85 | AE46: 45
A47: =E31 -> 250 | B47: =C22 -> P20 - EPS 100 | C47: =$C$39 -> 200 | D47: 250 | E47: =$E$37-E46-E46 -> 110 | F47: 5.5 | G47: 1.375 | H47: =VLOOKUP(G47,[1]EPStabel!$A$1:$I$38,VLOOKUP(B47,[1]EPStabel!$K$1:$L$18,2,FALSE),TRUE) -> 136.64 | I47: 0.7515 | J47: 1.3 | K47: =($C$24+$D$24)*2*1.5 -> 1350 | L47: 255 | M47: 3 | N47: =K47/L47 -> 5.294117647 | O47: =N47/60*$AC$43*M47/100 -> 0.1720588235 | T47: 0 | AE47: 45
A48: =A49*2 -> 1000 | B48: =C22 -> P20 - EPS 100 | C48: =$C$37 -> 200 | D48: 250 | E48: 20 | F48: 1 | G48: 1 | H48: =VLOOKUP(G48,[1]EPStabel!$A$1:$I$38,VLOOKUP(B48,[1]EPStabel!$K$1:$L$18,2,FALSE),TRUE) -> 136.64 | I48: 0.1366 | J48: 0.21 | O48: 0 | T48: 0 | AA48: =IF(A49>4,0.9,1) -> 0.9 | AD48: =IF(A49>50,0.85,0.9) -> 0.85 | AE48: 45
A49: =E32 -> 500 | B49: =C22 -> P20 - EPS 100 | C49: =$C$39 -> 200 | D49: 250 | E49: =$E$37-E48-E48 -> 110 | F49: 5.5 | G49: 2.75 | H49: =VLOOKUP(G49,[1]EPStabel!$A$1:$I$38,VLOOKUP(B49,[1]EPStabel!$K$1:$L$18,2,FALSE),TRUE) -> 129.32 | I49: 0.7113 | J49: 1.15 | K49: =($C$24+$D$24)*2*1.5 -> 1350 | L49: 255 | M49: 3 | N49: =K49/L49 -> 5.294117647 | O49: =N49/60*$AC$43*M49/100 -> 0.1720588235 | T49: 0 | AE49: 45
A50: =A51*2 -> 2000 | B50: =C22 -> P20 - EPS 100 | C50: =$C$37 -> 200 | D50: 250 | E50: 20 | F50: 1 | G50: 2 | H50: =VLOOKUP(G50,[1]EPStabel!$A$1:$I$38,VLOOKUP(B50,[1]EPStabel!$K$1:$L$18,2,FALSE),TRUE) -> 129.32 | I50: 0.1293 | J50: 0.18 | O50: 0 | T50: 0 | AA50: =IF(A51>4,0.9,1) -> 0.9 | AD50: =IF(A51>50,0.85,0.9) -> 0.85 | AE50: 45
A51: =E33 -> 1000 | B51: =C22 -> P20 - EPS 100 | C51: =$C$39 -> 200 | D51: 250 | E51: =$E$37-E50-E50 -> 110 | F51: 5.5 | G51: 5.5 | H51: =VLOOKUP(G51,[1]EPStabel!$A$1:$I$38,VLOOKUP(B51,[1]EPStabel!$K$1:$L$18,2,FALSE),TRUE) -> 122 | I51: 0.671 | J51: =ROUND(((I51+O51+T51+(AE51/A51))*$AC$39/0.85*$AF$39),2) -> 1.04 | K51: =($C$24+$D$24)*2*1.5 -> 1350 | L51: 255 | M51: 3 | N51: =K51/L51 -> 5.294117647 | O51: =N51/60*$AC$43*M51/100 -> 0.1720588235 | T51: 0 | AE51: 45
J53: =J39*2+J40*1 -> 2.72 | K53: bij afname van | N53: =A37 -> 100 | O53: st
A54: 20 | B54: =C22 -> P20 - EPS 100 | C54: =$C$37 -> 200 | D54: =$D$37 -> 250 | E54: 20 | F54: =C54*D54*E54/1000000 -> 1 | G54: =F54/1000*A54 -> 0.02 | H54: =VLOOKUP(G54,[1]EPStabel!$A$1:$I$38,VLOOKUP(B54,[1]EPStabel!$K$1:$L$18,2,FALSE),TRUE) -> 685.64 | I54: =ROUND(H54*F54/1000,4) -> 0.6856 | J54: =ROUND(((I54+O54+T54+(AE54/A54))*$AC$39/0.9*$AF$39),2) -> 3.26 | O54: 0 | T54: 0 | AA54: =IF(A55>4,0.9,1) -> 0.9 | AE54: 45
A55: 10 | B55: =C22 -> P20 - EPS 100 | C55: =$C$39 -> 200 | D55: 250 | E55: =$E$37-E54-E54 -> 110 | F55: 5.5 | G55: =F55/1000*A55 -> 0.055 | H55: =VLOOKUP(G55,[1]EPStabel!$A$1:$I$38,VLOOKUP(B55,[1]EPStabel!$K$1:$L$18,2,FALSE),TRUE) -> 335.5 | I55: 1.8453 | J55: =ROUND(((I55+O55+T55+(AE55/A55))*$AC$39/0.9*$AF$39),2) -> 10.43 | K55: =($C$24+$D$24)*2*1.5 -> 1350 | L55: 255 | M55: =VLOOKUP(A55,$A$69:$B$168,2) -> 53 | N55: =K55/L55 -> 5.294117647 | O55: =N55/60*$AC$43*M55/100 -> 3.039705882 | T55: 0 | AE55: 45
A58: 1 | B58: =$C$22 -> P20 - EPS 100 | C58: =$C$37 -> 200 | D58: =$D$37 -> 250 | E58: =$E$24 -> 150 | F58: =C58*D58*E58/1000000 -> 7.5 | G58: =F58/1000*A58 -> 0.0075 | H58: =VLOOKUP(G58,[1]EPStabel!$A$1:$I$38,VLOOKUP(B58,[1]EPStabel!$K$1:$L$18,2,FALSE),TRUE) -> 685.64 | I58: =ROUND(H58*F58/1000,4) -> 5.1423 | J58: =ROUND(((I58+O58+(AE58/A58))*$AC$39/0.9*$AF$39),2) -> 45.42 | K58: =($C$24+$D$24)*2*1.5 -> 1350 | L58: 255 | M58: =VLOOKUP(A58,$A$69:$B$168,2) -> 100 | N58: =K58/L58 -> 5.294117647 | O58: =N58/60*$AC$43*M58/100 -> 5.735294118 | T58: 0 | AE58: 30
A59: 2 | B59: =$C$22 -> P20 - EPS 100 | C59: =$C$37 -> 200 | D59: =$D$37 -> 250 | E59: =$E$24 -> 150 | F59: =C59*D59*E59/1000000 -> 7.5 | G59: =F59/1000*A59 -> 0.015 | H59: =VLOOKUP(G59,[1]EPStabel!$A$1:$I$38,VLOOKUP(B59,[1]EPStabel!$K$1:$L$18,2,FALSE),TRUE) -> 685.64 | I59: =ROUND(H59*F59/1000,4) -> 5.1423 | J59: =ROUND(((I59+O59+T59+(AE59/A59))*$AC$39/0.9*$AF$39),2) -> 28.12 | K59: =($C$24+$D$24)*2*1.5 -> 1350 | L59: 255 | M59: =VLOOKUP(A59,$A$69:$B$168,2) -> 90 | N59: =K59/L59 -> 5.294117647 | O59: =N59/60*$AC$43*M59/100 -> 5.161764706 | T59: 0 | AE59: 30
A60: 3 | B60: P20 - EPS 100 | C60: =$C$37 -> 200 | D60: =$D$37 -> 250 | E60: 150 | F60: =C60*D60*E60/1000000 -> 7.5 | G60: =F60/1000*A60 -> 0.0225 | H60: =VLOOKUP(G60,[1]EPStabel!$A$1:$I$38,VLOOKUP(B60,[1]EPStabel!$K$1:$L$18,2,FALSE),TRUE) -> 685.64 | I60: =ROUND(H60*F60/1000,4) -> 5.1423 | J60: =ROUND(((I60+O60+T60+(AE60/A60))*$AC$39/0.9*$AF$39),2) -> 23.77 | K60: =($C$24+$D$24)*2*1.5 -> 1350 | L60: 255 | M60: =VLOOKUP(A60,$A$69:$B$168,2) -> 80 | N60: =K60/L60 -> 5.294117647 | O60: =N60/60*$AC$43*M60/100 -> 4.588235294 | T60: 0 | AE60: 35
A61: =A59*2 -> 4 | B61: P20 - EPS 100 | C61: =$C$37 -> 200 | D61: =$D$37 -> 250 | E61: 150 | F61: =C61*D61*E61/1000000 -> 7.5 | G61: =F61/1000*A61 -> 0.03 | H61: =VLOOKUP(G61,[1]EPStabel!$A$1:$I$38,VLOOKUP(B61,[1]EPStabel!$K$1:$L$18,2,FALSE),TRUE) -> 380.64 | I61: =ROUND(H61*F61/1000,4) -> 2.8548 | J61: =ROUND(((I61+O61+T61+(AE61/A61))*$AC$39/0.9*$AF$39),2) -> 20.13 | K61: =($C$24+$D$24)*2*1.5 -> 1350 | L61: 255 | M61: =VLOOKUP(A61,$A$69:$B$168,2) -> 70 | N61: =K61/L61 -> 5.294117647 | O61: =N61/60*$AC$43*M61/100 -> 4.014705882 | T61: 0 | AE61: 45
A63: 1 | I63: =J58 -> 45.42 | J63: =I63 -> 45.42
A64: 2 | I64: =(I63-J59)/2+J59 -> 36.77 | J64: =I64 -> 36.77
A65: 3 | I65: =J60 -> 23.77 | J65: =(I64-I65)/2+I65 -> 30.27
A66: =A64*2 -> 4 | I66: =J61 -> 20.13 | J66: =(I64-I66)/2+I66 -> 28.45
A68: Contour doorrekenen | B68: % door te rekenen
A69: 1 | B69: 100
A70: 2 | B70: 90
A71: 3 | B71: 80
A72: 4 | B72: 70
A73: 5 | B73: 68
A74: 6 | B74: =B73-3 -> 65
A75: 7 | B75: =B74-3 -> 62
A76: 8 | B76: 59
A77: 9 | B77: 56
A78: 10 | B78: 53
A79: 11 | B79: =B78-2 -> 51
A80: 12 | B80: 49
A81: 13 | B81: 47
A82: 14 | B82: 45
A83: 15 | B83: =B82-1.5 -> 43.5
A84: 16 | B84: =B83-1.5 -> 42
A85: 17 | B85: 40.5
A86: 18 | B86: 39
A87: 19 | B87: 37.5
A88: 20 | B88: 36
A89: 21 | B89: 34.5
A90: 22 | B90: 33
A91: 23 | B91: =B90-1 -> 32
A92: 24 | B92: 31
A93: 25 | B93: 30
A94: 26 | B94: 29
A95: 27 | B95: 28
A96: 28 | B96: 27
A97: 29 | B97: 26
A98: 30 | B98: 25
A99: 31 | B99: =B98-0.5 -> 24.5
A100: 32 | B100: =B99-0.5 -> 24
A101: 33 | B101: 23.5
A102: 34 | B102: 23
A103: 35 | B103: 22.5
A104: 36 | B104: 22
A105: 37 | B105: 21.5
A106: 38 | B106: 21
A107: 39 | B107: 20.5
A108: 40 | B108: 20
A109: 41 | B109: 19.5
A110: 42 | B110: 19
A111: 43 | B111: 18.5
A112: 44 | B112: 18
A113: 45 | B113: 17.5
A114: 46 | B114: 17
A115: 47 | B115: 16.5
A116: 48 | B116: 16
A117: 49 | B117: 15.5
A118: 50 | B118: 15
A119: 51 | B119: 14.5
A120: 52 | B120: 14
A121: 53 | B121: =B120-0.5 -> 13.5
A122: 54 | B122: 13
A123: 55 | B123: 12.5
A124: 56 | B124: 12
A125: 57 | B125: 11.5
A126: 58 | B126: 11
A127: 59 | B127: 10.5
A128: 60 | B128: 10
A129: 61 | B129: 9.5
A130: 62 | B130: 9
A131: 63 | B131: 8.5
A132: 64 | B132: 8
A133: 65 | B133: 7.5
A134: 66 | B134: 7
A135: 67 | B135: 6.5
A136: 68 | B136: 6
A137: 69 | B137: 5.5
A138: 70 | B138: 5
A139: 71 | B139: 4.5
A140: 72 | B140: 4
A141: 73 | B141: 3.5
A142: 74 | B142: 3
A143: 75 | B143: 3
A144: 76 | B144: 3
A145: 77 | B145: 3
A146: 78 | B146: 3
A147: 79 | B147: 3
A148: 80 | B148: 3
A149: 81 | B149: 3
A150: 82 | B150: 3
A151: 83 | B151: 3
A152: 84 | B152: 3
A153: 85 | B153: 3
A154: 86 | B154: 3
A155: 87 | B155: 3
A156: 88 | B156: 3
A157: 89 | B157: 3
A158: 90 | B158: 3
A159: 91 | B159: 3
A160: 92 | B160: 3
A161: 93 | B161: 3
A162: 94 | B162: 3
A163: 95 | B163: 3
A164: 96 | B164: 3
A165: 97 | B165: 3
A166: 98 | B166: 3
A167: 99 | B167: 3
A168: 100 | B168: 3

Sheet i-SOLID
A2: info@twinplast.be | B2: http://www.twinplast.be/isolid | F2: i-SOLID
F3: Le protecteur de votre produit!
B4: Completez les dimensions de votre i-SOLID:
B6: Pièces: | C6: 100 | D6: pc(s)
B8: dimensions intérieur de votre boîte en carton:
B9: (L) Longueur: | C9: 250 | D9: mm
B11: (B) Largeur: | C11: 200 | D11: mm
B13: (H) Hauteur: | C13: 150 | D13: mm
B15: Transportkost: | C15: 75
B17: Prix | C17: 2.72 | D17: €/pc
B18: Total | C18: 272 | D18: €
B19: Prix sont exclusive boîte en carton et TVA de 21%)
B21: Prix: | C21: 4.6 | D21: /pc | E21: À la commande de 50pcs
C23: 2.72 | D23: /pc | E23: À la commande de 100pcs
C25: 1.88 | D25: /pc | E25: À la commande de 250pcs
C27: 1.57 | D27: /pc | E27: À la commande de 500pcs
C29: 1.4 | D29: /pc | E29: À la commande de 1000pcs
B31: Prototype: | C31: 45.42 | D31: /pc | E31: À la commande de 1pc
B32: Opm.: Alle prijzen zijn exclusief kartonnen doos en excl. 21% BTW.
B34: Gebruiksaanwijzing:
B35: 1. Klik bovenaan deze pagina op de metsboog die u wil tekenen.
B36: 2. Wijzig de metsboog-maten en klik op de knop 'Bereken' om de tekening en de prijs te zien van uw metsboog.
B37: 3. Klik op 'Plaats in winkelwagen' om de metsboog op uw bestelling te plaatsen.
B38: 4. Om uw bestelling verder af te ronden, klik op de knop 'Bekijk inhoud winkelwagen'
B39: of ga onderaan deze pagina naar het tabblad 'Winkelwagen'.
B40: Opm: Bij het afdrukken kan het zijn dat lijnen van de tekening niet aansluiten. In werkelijkheid is dit niet zo.
B44: Firme: | E44: * Nom:
B46: Adresse e-mail: | E46: *
B48: Rue + N°: | E48: * adres de livraison:
B50: Ville: | E50: *
B52: N° tél: | E52: * Pays:
B54: N° TVA | E54: *
B56: Conception: | E56: *
B58: Remarques: | H58: *
B60: Transport: | C60: Afhalen | E60: *
B62: Commande:
B63: Prix par pièce: | C63: =C17 -> 2.72 | D63: €/st
B64: =IF(C60="Leveren","Transport"," ") ->  | C64: =IF(C60="Leveren",C15,"0") -> 0 | D64: €
B65: Total | C65: =C63*C6+C64 -> 272 | D65: €
B66: 21% TVA | C66: =C65/100*21 -> 57.12 | D66: €
B67: Total | C67: =C66+C65 -> 329.12 | D67: €

Sheet EPStabel (hidden)
A1: x1,22 VS | B1: P15 - EPS 60 - CL2 | C1: P20 - EPS 100 - CL4 | D1: P25 - EPS 150 - CL5 | E1: P30 - EPS 200 - CL6 | F1: P35 - EPS 250 - CL7 | G1: P40 - EPS 300 | H1: P50 - EPS 400 | I1: P60 - EPS 500 | K1: Densiteiten | L1: Kolom
A2: 0 | B2: 668.56 | C2: 685.64 | D2: 734.44 | E2: 782.02 | F2: 838.14 | G2: 889.38 | H2: 973.56 | I2: 1057.74 | K2: NEOP20 - Neopor 100 | L2: 5
A3: 0.03 | B3: 363.56 | C3: 380.64 | D3: 413.58 | E3: 446.52 | F3: 488 | G3: 523.38 | H3: 591.7 | I3: 661.24 | K3: NEOP25 - Neopor 150 | L3: 6
A4: 0.05 | B4: 318.42 | C4: 335.5 | D4: 366 | E4: 396.5 | F4: 435.54 | G4: 468.48 | H4: 535.58 | I4: 602.68 | K4: NEOP30 - Neopor 200 | L4: 7
A5: 0.075 | B5: 265.96 | C5: 283.04 | D5: 311.1 | E5: 339.16 | F5: 375.76 | G5: 406.26 | H5: 469.7 | I5: 534.36 | K5: NEOP35 - Neopor 250 | L5: 8
A6: 0.1 | B6: 211.06 | C6: 228.14 | D6: 253.76 | E6: 278.16 | F6: 312.32 | G6: 340.38 | H6: 401.38 | I6: 463.6 | K6: P15 - EPS 60 | L6: 2
A7: 0.15 | B7: 196.42 | C7: 213.5 | D7: 237.9 | E7: 262.3 | F7: 286.7 | G7: 322.08 | H7: 384.3 | I7: 444.08 | K7: P20 - EPS 100 | L7: 3
A8: 0.2 | B8: 180.56 | C8: 197.64 | D8: 222.04 | E8: 245.22 | F8: 276.94 | G8: 303.78 | H8: 363.56 | I8: 423.34 | K8: P25 - EPS 150 | L8: 4
A9: 0.25 | B9: 170.8 | C9: 187.88 | D9: 212.28 | E9: 234.24 | F9: 265.96 | G9: 291.58 | H9: 351.36 | I9: 411.14 | K9: P30 - EPS 200 | L9: 5
A10: 0.3 | B10: 161.04 | C10: 178.12 | D10: 201.3 | E10: 223.26 | F10: 254.98 | G10: 279.38 | H10: 339.16 | I10: 397.72 | K10: P35 - EPS 250 | L10: 6
A11: 0.35 | B11: 153.72 | C11: 170.8 | D11: 193.98 | E11: 215.94 | F11: 246.44 | G11: 270.84 | H11: 330.62 | I11: 387.96 | K11: P40 - EPS 300 | L11: 7
A12: 0.4 | B12: 146.4 | C12: 163.48 | D12: 185.44 | E12: 207.4 | F12: 237.9 | G12: 262.3 | H12: 320.86 | I12: 379.42 | K12: P50 - EPS 400 | L12: 8
A13: 0.45 | B13: 141.52 | C13: 158.6 | D13: 180.56 | E13: 201.3 | F13: 231.8 | G13: 256.2 | H13: 313.54 | I13: 373.32 | K13: P60 - EPS 500 | L13: 9
A14: 0.5 | B14: 135.42 | C14: 152.5 | D14: 174.46 | E14: 195.2 | F14: 225.7 | G14: 248.88 | H14: 307.44 | I14: 364.78 | K14: P20F - EPS 100 fijn | L14: 4
A15: 0.55 | B15: 132.98 | C15: 151.28 | D15: 173.24 | E15: 193.98 | F15: 224.48 | G15: 247.66 | H15: 306.22 | I15: 363.56 | K15: P25F - EPS 150 fijn | L15: 5
A16: 0.6 | B16: 131.76 | C16: 150.06 | D16: 172.02 | E16: 191.54 | F16: 222.04 | G16: 246.44 | H16: 305 | I16: 361.12
A17: 0.65 | B17: 130.54 | C17: 147.62 | D17: 170.8 | E17: 190.32 | F17: 219.6 | G17: 244 | H17: 302.56 | I17: 359.9 | K17: LET op bij wijzigingen --> zorg ervoor dat tabel alfabetisch (A->Z) gesorteerd is!
A18: 0.7 | B18: 129.32 | C18: 146.4 | D18: 169.58 | E18: 187.88 | F18: 218.38 | G18: 241.56 | H18: 300.12 | I18: 357.46
A19: 0.75 | B19: 128.1 | C19: 145.18 | D19: 167.14 | E19: 186.66 | F19: 217.16 | G19: 240.34 | H19: 297.68 | I19: 355.02
A20: 0.8 | B20: 125.66 | C20: 142.74 | D20: 164.7 | E20: 184.22 | F20: 215.94 | G20: 239.12 | H20: 295.24 | I20: 352.58
A21: 0.85 | B21: 123.22 | C21: 140.3 | D21: 162.26 | E21: 183 | F21: 213.5 | G21: 236.68 | H21: 292.8 | I21: 350.14
A22: 0.9 | B22: 122 | C22: 139.08 | D22: 161.04 | E22: 181.78 | F22: 211.06 | G22: 234.24 | H22: 290.36 | I22: 347.7
A23: 0.95 | B23: 120.78 | C23: 137.86 | D23: 158.6 | E23: 179.34 | F23: 208.62 | G23: 231.8 | H23: 287.92 | I23: 345.26
A24: 1 | B24: 119.56 | C24: 136.64 | D24: 157.38 | E24: 178.12 | F24: 207.4 | G24: 230.58 | H24: 286.7 | I24: 344.04
A25: 1.5 | B25: 113.46 | C25: 132.98 | D25: 153.72 | E25: 174.46 | F25: 203.74 | G25: 225.7 | H25: 283.04 | I25: 339.16
A26: 2 | B26: 107.36 | C26: 129.32 | D26: 150.06 | E26: 169.58 | F26: 198.86 | G26: 220.82 | H26: 278.16 | I26: 334.28
A27: 5 | B27: 104.92 | C27: 122 | D27: 142.74 | E27: 162.26 | F27: 190.32 | G27: 212.28 | H27: 268.4 | I27: 325.74
A28: 7.5 | B28: 102.48 | C28: 119.56 | D28: 139.08 | E28: 158.6 | F28: 186.66 | G28: 208.62 | H28: 264.74 | I28: 320.86
A29: 10 | B29: 98.82 | C29: 115.9 | D29: 135.42 | E29: 154.94 | F29: 183 | G29: 204.96 | H29: 261.08 | I29: 317.2
A30: 15 | B30: 97.6 | C30: 114.68 | D30: 134.2 | E30: 153.72 | F30: 180.56 | G30: 203.74 | H30: 259.86 | I30: 315.98
A31: 20 | B31: 96.38 | C31: 113.46 | D31: 132.98 | E31: 152.5 | F31: 178.12 | G31: 201.3 | H31: 257.42 | I31: 313.54
A32: 25 | B32: 93.94 | C32: 111.02 | D32: 130.54 | E32: 150.06 | F32: 176.9 | G32: 198.86 | H32: 254.98 | I32: 311.1
A33: 35 | B33: 92.72 | C33: 109.8 | D33: 129.32 | E33: 148.84 | F33: 175.68 | G33: 197.64 | H33: 252.54 | I33: 308.66
A34: 45 | B34: 91.5 | C34: 108.58 | D34: 128.1 | E34: 146.4 | F34: 174.46 | G34: 196.42 | H34: 251.32 | I34: 307.44
A35: 50 | B35: 90.28 | C35: 107.36 | D35: 126.88 | E35: 145.18 | F35: 173.24 | G35: 195.2 | H35: 250.1 | I35: 306.22
A36: 70 | B36: 89.06 | C36: 106.14 | D36: 125.66 | E36: 143.96 | F36: 172.02 | G36: 193.98 | H36: 248.88 | I36: 305
A37: 90 | B37: 87.84 | C37: 104.92 | D37: 124.44 | E37: 142.74 | F37: 170.8 | G37: 191.54 | H37: 247.66 | I37: 302.56
A38: 100 | B38: 85.4 | C38: 102.48 | D38: 122 | E38: 140.3 | F38: 167.14 | G38: 189.1 | H38: 244 | I38: 300.12
